bitfinex-derivatives/quotes_SOLF0:USTF0_20250603
["timestamp","ask_amount","ask_price","bid_price","bid_amount"]
[1748987508555,0.04524495,155.19,155.13,7.98972081]
[1748987508862,0.04524495,155.19,155.05,7.98972081]
[1748987508863,16.05902997,155.18,155.05,7.98972081]
[1748987509157,7.45973762,155.14,155.09,7.41524155]
[1748987509362,299.0,155.13,155.0,10.1535364]
[1748987509560,299.0,155.13,154.97,7.41524155]
[1748987509561,6.4465,155.02,154.97,7.41524155]
[1748987509759,7.41524155,155.08,155.01,7.41524155]
[1748987510058,7.41524155,155.09,155.02,1.9186]
[1748987510559,2.0977,155.17,155.04,7.41524155]
[1748987510560,7.41524155,155.1,155.04,7.41524155]
[1748987510860,0.043522,155.09,155.05,0.04682815]
[1748987511058,0.043522,155.09,155.05,6.49162815]
[1748987511665,0.043522,155.09,155.06,6.4446]
[1748987511957,0.043522,155.09,155.05,0.04682815]
[1748987512158,11.59227875,155.17,155.07,11.59227875]
[1748987512365,4.96774152,155.16,155.09,11.59227875]
[1748987512564,11.59227875,155.18,155.1,4.1629]
[1748987512861,11.59227875,155.18,155.12,6.4419]
[1748987513061,11.59227875,155.19,155.1,4.1629]
[1748987513254,0.04543042,155.17,155.13,0.04387299]
[1748987513450,0.04543042,155.17,155.13,6.48567299]
[1748987513654,11.59227875,155.15,155.13,0.04387299]
[1748987513962,11.59227875,155.15,155.05,2.2275]
[1748987514161,11.59227875,155.11,155.05,2.2275]
[1748987514462,4.91006588,155.1,155.05,2.2275]
[1748987514667,4.9099211,155.09,155.05,2.2275]
[1748987514964,11.63567297,155.09,155.06,6.4446]
[1748987515155,11.63567297,155.09,155.05,2.26828457]
[1748987515556,0.04339422,155.09,155.05,2.26828457]
[1748987516063,4.90214469,155.08,155.05,0.04078457]
[1748987516361,16.49304771,155.07,155.05,0.04078457]
[1748987516564,11.59227875,155.07,155.05,0.04078457]
[1748987516964,4.90439629,155.06,155.05,0.04078457]
[1748987517262,18.03687875,155.07,155.05,0.04078457]
[1748987517450,11.59227875,155.07,155.05,0.04078457]
[1748987517651,11.59227875,155.07,155.01,6.4467]
[1748987517652,4.90348557,155.06,155.01,6.4467]
[1748987517951,11.59227875,155.08,154.98,11.59227875]
[1748987518150,4.91204928,155.14,155.0,11.59227875]
[1748987518353,11.59227875,155.09,155.0,11.59227875]
[1748987518554,0.04148161,155.06,155.0,11.59227875]
[1748987518757,4.90473574,155.05,155.0,11.59227875]
[1748987518963,0.04148161,155.06,154.95,68.5293]
[1748987519158,3.09e-06,155.02,154.99,0.04571063]
[1748987519458,3.09e-06,155.02,154.95,68.5293]
[1748987519459,18.03577875,155.09,155.0,11.59227875]
[1748987519856,18.03577875,155.09,155.04,6.4452]
[1748987520055,18.03577875,155.09,154.95,4.3228]
[1748987520056,4.91204928,155.14,155.01,11.59227875]
[1748987520257,0.04198895,155.09,155.06,0.04513446]
[1748987520656,0.04198895,155.09,155.06,6.48953446]
[1748987521654,0.04198895,155.09,155.06,0.04513446]
[1748987522358,4.91204928,155.14,155.06,0.04513446]
[1748987522762,11.59227875,155.13,155.06,0.04513446]
[1748987523154,0.04105207,155.11,155.06,0.04513446]
[1748987523860,0.04105207,155.11,155.08,11.59227875]
[1748987524164,0.04105207,155.11,155.1,6.4428]
[1748987526451,0.04105207,155.11,155.1,18.03507875]
[1748987526967,4.91204928,155.14,155.13,6.4418]
[1748987527464,6.4391,155.2,155.16,6.4403]
[1748987527765,13.31,155.23,155.16,6.4403]
[1748987527962,6.4389,155.2,155.18,0.04345485]
[1748987528163,0.04512522,155.21,155.18,0.04345485]
[1748987528465,6.4389,155.2,155.18,0.04345485]
[1748987528860,0.04512522,155.21,155.18,0.04345485]
[1748987530360,6.4389,155.2,155.18,0.04345485]
[1748987531165,6.48372522,155.21,155.18,0.04345485]
[1748987531361,0.04512522,155.21,155.18,0.04345485]
[1748987531869,6.4392,155.2,155.18,0.04345485]
[1748987532067,0.04512522,155.21,155.18,0.04345485]
[1748987532274,6.4393,155.19,155.18,0.04345485]
[1748987534269,6.4391,155.2,155.18,0.04345485]
[1748987535665,6.48372522,155.21,155.18,0.04345485]
[1748987535967,0.04512522,155.21,155.18,0.04345485]
[1748987536169,6.439,155.2,155.18,0.04345485]
[1748987536367,0.04512522,155.21,155.18,0.04345485]
[1748987536871,6.48382522,155.21,155.18,0.04345485]
[1748987538569,0.04512522,155.21,155.18,0.04345485]
[1748987538867,0.04512522,155.21,155.2,18.01172465]
[1748987539074,13.31,155.23,155.2,11.57282465]
[1748987539261,6.4353,155.29,155.22,11.57282465]
[1748987539574,11.57282465,155.31,155.22,11.57282465]
[1748987539767,11.56592757,155.3,155.24,6.437]
[1748987540265,0.04068833,155.29,155.25,0.04936063]
[1748987540469,4.76915903,155.28,155.25,6.48616063]
[1748987540774,6.47608833,155.29,155.25,6.48616063]
[1748987540967,4.77059261,155.28,155.25,0.04936063]
[1748987541164,4.76970499,155.27,155.25,0.04936063]
[1748987541365,11.60844156,155.29,155.25,0.04936063]
[1748987541566,6.4364,155.26,155.25,0.04936063]
[1748987541961,6.4377,155.23,155.19,10.7404]
[1748987542162,4.7674076,155.22,155.19,4.3013]
[1748987542373,11.57228387,155.26,155.19,4.3013]
[1748987542569,6.4377,155.23,155.19,10.7404]
[1748987542968,6.48719829,155.23,155.19,10.7885916]
[1748987543172,4.78564527,155.22,155.19,10.7885916]
[1748987543475,6.48719829,155.23,155.19,10.7885916]
[1748987543771,4.79163822,155.22,155.19,10.7885916]
[1748987543974,4.79160375,155.21,155.19,10.7885916]
[1748987544167,6.4381,155.22,155.19,10.7885916]
[1748987545173,6.48719829,155.23,155.2,6.4389]
[1748987545375,6.48719829,155.23,155.19,4.3494916]
[1748987545576,6.48719829,155.23,155.19,10.7884916]
[1748987545778,4.79469819,155.22,155.19,4.3494916]
[1748987546076,6.48719829,155.23,155.19,4.3494916]
[1748987546274,4.794744,155.22,155.19,4.3494916]
[1748987546476,0.04949829,155.23,155.2,6.4388]
[1748987546674,0.04949829,155.23,155.2,18.01108387]
[1748987546875,4.7930118,155.22,155.2,18.01108387]
[1748987547067,0.04949829,155.23,155.2,18.01108387]
[1748987547271,4.79300107,155.22,155.2,18.01108387]
[1748987547471,0.04949829,155.23,155.21,6.4385]
[1748987547878,4.79392484,155.22,155.21,6.4385]
[1748987548073,0.04949829,155.23,155.21,6.4385]
[1748987548679,4.78450137,155.22,155.21,6.4385]
[1748987548874,0.04949829,155.23,155.21,6.4385]
[1748987549380,4.78398524,155.22,155.21,6.4385]
[1748987549579,0.04949829,155.23,155.22,6.4381]
[1748987551177,0.04949829,155.23,155.22,18.01038387]
[1748987554082,11.57228387,155.3,155.22,18.01038387]
[1748987554277,6.4366,155.26,155.22,18.01038387]
[1748987554473,6.4366,155.26,155.23,6.4376]
[1748987555178,0.04764254,155.26,155.23,0.04361705]
[1748987555679,6.437,155.25,155.23,0.04361705]
[1748987556875,6.48424254,155.26,155.23,6.48101705]
[1748987557983,0.04764254,155.26,155.24,6.4371]
[1748987560495,6.48404254,155.26,155.23,18.05340092]
[1748987561084,6.48404254,155.26,155.25,11.57228387]
[1748987561285,9.3,155.32,155.25,11.57228387]
[1748987561488,9.3,155.32,155.2,13.61308387]
[1748987561489,9.3,155.32,155.27,11.57228387]
[1748987561689,6.435,155.3,155.27,18.00798387]
[1748987561999,6.435,155.3,155.27,11.57228387]
[1748987562183,6.48372247,155.3,155.27,11.61495484]
[1748987562385,4.71178245,155.29,155.27,11.61495484]
[1748987562590,4.71177613,155.28,155.27,18.05095484]
[1748987562797,0.04872247,155.3,155.27,11.61495484]
[1748987563695,0.04872247,155.3,155.28,6.4353]
[1748987563888,4.7090434,155.29,155.27,11.61495484]
[1748987564088,0.04872247,155.3,155.27,11.61495484]
[1748987564595,0.04872247,155.3,155.29,6.4352]
[1748987564794,0.04872247,155.3,155.29,18.00748387]
[1748987564997,9.3,155.32,155.29,11.57228387]
[1748987565195,9.3,155.32,155.31,17.98743466]
[1748987565492,2.2393,155.42,155.31,11.55255688]
[1748987565697,11.55150409,155.41,155.33,17.98500409]
[1748987565887,11.55118764,155.41,155.33,17.98468764]
[1748987566092,6.4321,155.37,155.35,0.04298538]
[1748987566498,0.04826134,155.39,155.35,0.04298538]
[1748987567193,6.4321,155.37,155.35,0.04298538]
[1748987567799,6.4315,155.38,155.36,6.4322]
[1748987567999,0.04826134,155.39,155.36,11.54941002]
[1748987568493,0.04826134,155.39,155.38,6.4314]
[1748987569094,12.7,155.41,155.4,6.4306]
[1748987570402,12.7,155.41,155.39,6.47721885]
[1748987571801,12.7,155.41,155.4,6.4306]
[1748987573404,12.7,155.41,155.4,17.98001002]
[1748987573700,11.54941002,155.5,155.4,11.54941002]
[1748987573903,11.54941002,155.5,155.37,4.3081]
[1748987573904,11.54941002,155.5,155.42,11.54941002]
[1748987574098,6.4278,155.47,155.43,6.4292]
[1748987574700,6.47379375,155.47,155.43,6.47447593]
[1748987575200,6.47379375,155.47,155.44,6.4289]
[1748987576902,0.04599375,155.47,155.44,11.54941002]
[1748987577103,4.72054401,155.46,155.44,11.54941002]
[1748987577299,0.04599375,155.47,155.45,6.4283]
[1748987578501,4.74938123,155.46,155.45,6.4283]
[1748987578804,0.04599375,155.47,155.46,6.4281]
[1748987579299,0.04599375,155.47,155.46,17.97751002]
[1748987579706,4.75352372,155.47,155.46,17.97751002]
[1748987580007,10.72,155.5,155.46,11.54941002]
[1748987580210,10.72,155.5,155.48,6.4272]
[1748987580602,6.4258,155.52,155.48,6.4272]
[1748987580805,6.47307832,155.52,155.48,18.01802632]
[1748987582103,6.4261,155.51,155.48,18.01802632]
[1748987587609,6.4261,155.51,155.48,11.59082632]
[1748987588517,6.4267,155.5,155.48,11.59082632]
[1748987588910,6.4269,155.49,155.48,11.59082632]
[1748987591318,0.04727832,155.52,155.48,11.59082632]
[1748987591319,6.4267,155.5,155.48,11.59082632]
[1748987591821,4.7747021,155.49,155.48,11.59082632]
[1748987592126,6.4267,155.5,155.48,11.59082632]
[1748987592420,11.20159789,155.49,155.48,0.0414163]
[1748987592616,11.20156499,155.49,155.48,0.0414163]
[1748987592825,6.4269,155.49,155.48,0.0414163]
[1748987593725,11.19424974,155.49,155.48,0.0414163]
[1748987593916,6.4269,155.49,155.48,0.0414163]
[1748987594721,11.19417258,155.49,155.48,0.0414163]
[1748987594921,6.4269,155.49,155.48,0.0414163]
[1748987595114,6.4269,155.49,155.47,8.37741251]
[1748987595321,4.76598584,155.48,155.47,8.37741251]
[1748987595623,6.4269,155.49,155.47,8.37741251]
[1748987595826,4.766365,155.48,155.47,8.37741251]
[1748987596015,6.4269,155.49,155.47,8.37741251]
[1748987597226,4.76881055,155.48,155.47,8.37741251]
[1748987597415,6.4269,155.49,155.47,8.37741251]
[1748987597620,4.76872059,155.48,155.47,8.37741251]
[1748987597825,6.4269,155.49,155.47,8.37741251]
[1748987598028,4.76868152,155.48,155.47,8.37741251]
[1748987598233,6.4269,155.49,155.47,8.37741251]
[1748987598728,6.4267,155.5,155.48,11.54941002]
[1748987599525,4.77542777,155.49,155.48,11.54941002]
[1748987599723,4.77546446,155.49,155.48,11.54941002]
[1748987599927,6.4267,155.5,155.48,11.54941002]
[1748987600427,4.77498064,155.49,155.48,6.72928864]
[1748987600930,6.4267,155.5,155.48,6.72928864]
[1748987601729,4.77540872,155.49,155.48,6.72928864]
[1748987601932,6.4267,155.5,155.48,6.72928864]
[1748987602326,6.4262,155.51,155.48,13.15658864]
[1748987602522,6.4262,155.51,155.48,6.72928864]
[1748987602730,4.76604713,155.5,155.48,6.72928864]
[1748987602930,0.04727832,155.52,155.48,13.15638864]
[1748987603630,4.7661691,155.51,155.48,13.15638864]
[1748987603932,4.61194317,155.5,155.48,13.15638864]
[1748987604132,6.4261,155.51,155.48,13.15638864]
[1748987604439,4.61221074,155.5,155.48,13.15638864]
[1748987604628,0.04727832,155.52,155.49,6.4267]
[1748987604932,0.04727832,155.52,155.5,11.54941002]
[1748987605229,4.61285849,155.51,155.5,11.54941002]
[1748987605533,0.04727832,155.52,155.5,11.54941002]
[1748987606133,4.60533442,155.51,155.5,11.54941002]
[1748987606334,6.47307832,155.52,155.5,11.54941002]
[1748987607034,4.60533574,155.51,155.5,11.54941002]
[1748987607233,6.47307832,155.52,155.5,11.54941002]
[1748987607630,4.60473428,155.51,155.5,11.54941002]
[1748987607837,6.47307832,155.52,155.5,11.54941002]
[1748987608037,4.61821045,155.51,155.5,11.54941002]
[1748987608338,0.04727832,155.52,155.5,11.54941002]
[1748987608828,4.61776204,155.51,155.5,11.54941002]
[1748987609138,0.04727832,155.52,155.5,11.54941002]
[1748987609637,0.04727832,155.52,155.5,17.97591002]
[1748987611125,4.61924464,155.51,155.5,6.4265]
[1748987611328,0.04727832,155.52,155.51,6.4261]
[1748987611927,4.66663382,155.52,155.51,6.4261]
[1748987612133,4.66656995,155.52,155.51,6.4261]
[1748987612327,0.04727832,155.52,155.51,6.4261]
[1748987612536,4.68155657,155.52,155.49,0.04597841]
[1748987612734,0.04727832,155.52,155.49,0.04597841]
[1748987613128,0.04727832,155.52,155.49,6.47287841]
[1748987613833,4.63375042,155.51,155.49,6.47287841]
[1748987614028,4.63375042,155.5,155.49,6.47287841]
[1748987614232,4.63729694,155.5,155.49,6.47287841]
[1748987614434,6.47297832,155.52,155.49,17.99903066]
[1748987614641,6.47297832,155.52,155.5,34.24]
[1748987617141,0.04727832,155.52,155.5,45.76806466]
[1748987617336,0.04727832,155.52,155.51,11.526994]
[1748987617941,0.04727832,155.52,155.51,17.953094]
[1748987624548,0.04727832,155.52,155.51,52.193094]
[1748987625547,4.68985481,155.52,155.51,52.193094]
[1748987625851,0.04727832,155.52,155.51,52.193094]
[1748987626955,4.69039481,155.52,155.51,52.193094]
[1748987627152,0.04727832,155.52,155.51,52.193094]
[1748987627957,4.69503648,155.52,155.51,52.193094]
[1748987628150,0.04727832,155.52,155.51,52.193094]
[1748987628355,4.69522864,155.52,155.51,52.193094]
[1748987628548,0.04727832,155.52,155.51,52.19079785]
[1748987628754,4.69502517,155.52,155.51,52.19079785]
[1748987628951,0.04727832,155.52,155.51,52.19079785]
[1748987629352,4.69474464,155.52,155.51,52.19079785]
[1748987629562,4.69478496,155.52,155.51,52.19079785]
[1748987629859,4.69481393,155.52,155.51,45.76469785]
[1748987630152,0.04727832,155.52,155.51,34.24]
[1748987630560,6.47297832,155.52,155.51,34.24]
[1748987630761,4.69279529,155.52,155.49,0.04597841]
[1748987630952,0.04727832,155.52,155.45,45.77372209]
[1748987631147,49.94052209,155.54,155.45,45.77372209]
[1748987631347,11.53372209,155.52,155.45,45.77372209]
[1748987631663,13.61489622,155.51,155.43,11.53849622]
[1748987631956,11.58430456,155.49,155.45,0.04629767]
[1748987632262,11.53849622,155.47,155.38,11.53849622]
[1748987632457,34.24,155.46,155.38,11.53849622]
[1748987632859,4.63720349,155.45,155.38,11.53849622]
[1748987633057,0.04620118,155.43,155.4,0.04644462]
[1748987633262,6.4302,155.41,155.4,0.04644462]
[1748987633453,11.06162962,155.41,155.35,11.53849622]
[1748987633649,6.4331,155.34,155.31,555.22]
[1748987633854,11.53849622,155.39,155.31,11.53849622]
[1748987634048,11.53849622,155.37,155.29,11.53849622]
[1748987634253,4.61503494,155.36,155.29,11.53849622]
[1748987634453,0.04768009,155.35,155.31,0.04238589]
[1748987634653,4.6148472,155.34,155.31,0.04238589]
[1748987634858,4.61448941,155.33,155.31,0.04238589]
[1748987635158,0.04768009,155.35,155.31,0.04238589]
[1748987635555,4.61474652,155.34,155.31,0.04238589]
[1748987635860,4.61479299,155.33,155.31,0.04238589]
[1748987636054,4.61474562,155.32,155.31,0.04238589]
[1748987636253,6.4332,155.34,155.31,0.04238589]
[1748987636656,4.61426471,155.33,155.31,0.04238589]
[1748987636856,6.4332,155.34,155.31,0.04238589]
[1748987638058,4.61429654,155.33,155.31,0.04238589]
[1748987638356,6.4339,155.33,155.31,0.04238589]
[1748987638761,4.50116962,155.32,155.31,0.04238589]
[1748987639263,6.4339,155.33,155.31,0.04238589]
[1748987639762,4.51450112,155.32,155.31,0.04238589]
[1748987639957,4.51450112,155.32,155.31,11.58088211]
[1748987640154,4.51486504,155.32,155.31,18.01498211]
[1748987640459,0.04768009,155.35,155.31,11.58088211]
[1748987640658,0.04768009,155.35,155.33,6.4332]
[1748987640963,4.51735291,155.34,155.33,6.4332]
[1748987641155,0.04768009,155.35,155.31,11.58088211]
[1748987641559,4.516785,155.34,155.31,11.58088211]
[1748987641759,0.04768009,155.35,155.33,6.4335]
[1748987643263,4.52491977,155.34,155.33,6.4335]
[1748987643462,0.04768009,155.35,155.33,6.4335]
[1748987643856,0.04768009,155.35,155.31,0.04238589]
[1748987644053,4.52388074,155.34,155.31,0.04238589]
[1748987644251,6.4334,155.34,155.31,0.04238589]
[1748987644659,4.52296185,155.33,155.31,0.04238589]
[1748987644863,4.52286611,155.32,155.31,0.04238589]
[1748987645061,6.4334,155.34,155.31,0.04238589]
[1748987646155,6.4356,155.29,155.13,567.6511879]
[1748987646357,11.53849622,155.27,155.17,34.02]
[1748987646555,4.51447776,155.28,155.13,45.55849622]
[1748987646556,11.53849622,155.23,155.13,45.55849622]
[1748987646756,42.8078849,155.22,155.12,11.53849622]
[1748987646961,42.8078849,155.22,155.1,45.55849622]
[1748987646962,11.53849622,155.19,155.1,45.55849622]
[1748987647165,11.53849622,155.19,155.13,0.04637653]
[1748987647358,11.58304162,155.17,155.13,0.04637653]
[1748987647666,45.60304162,155.17,155.13,0.04637653]
[1748987648056,6.4414,155.14,155.13,0.04637653]
[1748987648858,4.50498047,155.14,155.13,0.04637653]
[1748987649066,45.60304162,155.17,155.13,0.04637653]
[1748987649266,4.50499037,155.16,155.13,0.04637653]
[1748987649469,45.60304162,155.17,155.13,0.04637653]
[1748987649663,4.50474321,155.16,155.13,0.04637653]
[1748987649862,4.50425694,155.15,155.13,0.04637653]
[1748987650066,4.50418646,155.14,155.13,0.04637653]
[1748987650367,11.53849622,155.15,155.07,34.02]
[1748987650563,11.53849622,155.13,155.04,45.57849622]
[1748987650763,11.53849622,155.13,155.04,11.53849622]
[1748987650764,34.04,155.12,155.04,11.53849622]
[1748987650956,6.4434,155.1,155.04,17.98379622]
[1748987651156,4.50142856,155.09,155.04,17.98379622]
[1748987651361,0.04578164,155.08,155.05,0.04174213]
[1748987651965,4.49765464,155.07,155.05,0.04174213]
[1748987652265,4.49702012,155.06,155.05,0.04174213]
[1748987652465,34.08578164,155.08,155.0,11.53849622]
[1748987652662,6.4446,155.07,155.0,11.53849622]
[1748987653272,6.4448,155.06,155.02,6.4461]
[1748987653570,6.49004041,155.06,155.02,6.49037491]
[1748987655564,0.04524041,155.06,155.02,6.49037491]
[1748987657165,6.49004041,155.06,155.02,6.49037491]
[1748987657369,0.04524041,155.06,155.02,6.49057491]
[1748987657780,0.04524041,155.06,155.03,6.4458]
[1748987658071,0.04524041,155.06,155.02,0.04427491]
[1748987658273,6.49014041,155.06,155.02,0.04427491]
[1748987658865,6.4452,155.05,155.02,0.04427491]
[1748987660269,6.446,155.03,155.02,0.04427491]
[1748987663369,34.08,155.04,154.98,6.4479]
[1748987663770,34.08,155.04,154.97,6.4483]
[1748987663970,6.4469,155.01,154.97,6.4483]
[1748987664168,34.08,155.04,154.97,6.4483]
[1748987664370,0.04103484,155.02,154.99,0.04220045]
[1748987664677,0.04103484,155.02,154.94,19.95277059]
[1748987664970,6.4479,154.99,154.94,19.95277059]
[1748987665475,6.4479,154.99,154.95,6.449]
[1748987665675,0.04733792,154.99,154.94,2.55397415]
[1748987666172,2.21373792,154.99,154.94,2.55397415]
[1748987666375,6.4493,154.95,154.94,2.55397415]
[1748987667170,0.04733792,154.99,154.85,2.1721]
[1748987667371,569.7909,155.05,154.91,17.39879644]
[1748987667372,0.04723774,154.94,154.91,17.39879644]
[1748987667675,0.0457538,154.94,154.93,6.4501]
[1748987668073,0.0457538,154.94,154.92,6.4501]
[1748987668271,0.0457538,154.94,154.88,2.0886]
[1748987668773,0.0457538,154.94,154.81,590.98]
[1748987668974,0.04768311,154.89,154.87,0.02008951]
[1748987670075,6.4522,154.88,154.87,0.02008951]
[1748987671573,6.4533,154.86,154.81,34.08]
[1748987672078,6.4527,154.87,154.81,34.08]
[1748987672272,6.4527,154.87,154.78,17.39879644]
[1748987672273,34.1,154.87,154.78,17.39879644]
[1748987672474,0.04263084,154.84,154.78,17.39879644]
[1748987672680,0.04263084,154.84,154.76,17.39879644]
[1748987672874,0.04263084,154.84,154.76,51.49879644]
[1748987673073,0.04263084,154.84,154.78,6.4561]
[1748987673268,0.04263084,154.84,154.78,17.39879644]
[1748987673481,0.04263084,154.84,154.8,17.39879644]
[1748987673781,0.04263084,154.84,154.81,34.1]
[1748987673983,17.39879644,154.92,154.81,34.1]
[1748987674276,17.39879644,154.92,154.82,2.1517]
[1748987674674,34.1,154.93,154.83,4.82387969]
[1748987674979,0.04522041,154.9,154.86,0.04263084]
[1748987675180,0.04522041,154.9,154.86,34.14263084]
[1748987675476,0.04522041,154.9,154.89,6.4518]
[1748987676182,12.02,154.91,154.9,6.4514]
[1748987677083,0.04587446,154.92,154.91,6.451]
[1748987678172,0.04587446,154.92,154.9,0.0421482]
[1748987678173,6.4489,154.96,154.92,6.4505]
[1748987678378,17.39879644,154.96,154.9,34.1421482]
[1748987678679,6.4497,154.94,154.9,40.5932482]
[1748987679076,6.49138386,154.94,154.9,40.5932482]
[1748987679482,0.04168386,154.94,154.9,0.0421482]
[1748987679777,17.4404803,154.94,154.9,0.0421482]
[1748987680086,6.4507,154.92,154.9,0.0421482]
[1748987680481,17.4404803,154.94,154.9,0.0421482]
[1748987680686,6.451,154.91,154.9,0.0421482]
[1748987680885,0.04168386,154.94,154.9,0.0421482]
[1748987681078,17.4404803,154.94,154.9,0.0421482]
[1748987681279,6.4508,154.92,154.9,0.0421482]
[1748987682184,6.451,154.91,154.9,0.0421482]
[1748987682781,6.4507,154.92,154.9,0.0421482]
[1748987683377,6.451,154.91,154.9,0.0421482]
[1748987683976,6.4507,154.92,154.9,0.0421482]
[1748987684193,0.04168386,154.94,154.9,0.0421482]
[1748987685187,11.66071676,154.94,154.9,0.0421482]
[1748987685682,0.04168386,154.94,154.9,0.0421482]
[1748987686289,6.4509,154.91,154.9,0.0421482]
[1748987686594,18.0699329,154.91,154.9,0.0421482]
[1748987688488,11.6190329,154.91,154.83,36.2864]
[1748987688797,11.6190329,154.91,154.83,38.3845]
[1748987689090,6.4537,154.85,154.83,38.3845]
[1748987689300,11.6190329,154.91,154.83,38.3845]
[1748987689492,0.04307907,154.89,154.85,0.0419689]
[1748987689889,11.66211197,154.89,154.85,0.0419689]
[1748987690089,11.66211197,154.89,154.82,2.1517]
[1748987690392,11.6190329,154.87,154.8,34.12]
[1748987690787,11.6190329,154.87,154.77,2.1764]
[1748987690788,6.4559,154.8,154.77,42.7531]
[1748987690992,6.4559,154.8,154.78,11.6190329]
[1748987691299,0.04074682,154.81,154.78,11.6190329]
[1748987691596,0.04074682,154.81,154.78,11.66687896]
[1748987691597,6.456,154.79,154.78,11.66687896]
[1748987692290,6.456,154.79,154.78,0.04784606]
[1748987693287,0.04074682,154.81,154.78,0.04784606]
[1748987693493,0.04074682,154.81,154.79,11.6190329]
[1748987693694,0.04074682,154.81,154.78,0.04784606]
[1748987694494,6.456,154.79,154.78,0.04784606]
[1748987695392,0.04074682,154.81,154.78,0.04784606]
[1748987695594,0.04074682,154.81,154.79,11.6190329]
[1748987695902,6.4555,154.8,154.79,11.6190329]
[1748987696391,6.49604682,154.81,154.79,11.6190329]
[1748987696697,0.04074682,154.81,154.79,11.6190329]
[1748987696896,0.04074682,154.81,154.8,11.6190329]
[1748987697386,6.4549,154.82,154.8,11.6190329]
[1748987698698,6.50111665,154.83,154.8,11.6190329]
[1748987699301,6.4548,154.82,154.79,6.4557]
[1748987699502,6.4548,154.82,154.78,0.04784606]
[1748987699689,6.4548,154.82,154.78,18.12297896]
[1748987700093,6.50121665,154.83,154.79,6.4557]
[1748987700597,0.04671665,154.83,154.81,6.4551]
[1748987700802,2.5484,154.84,154.82,11.6190329]
[1748987700993,0.27949,154.87,154.82,11.6190329]
[1748987701700,0.27949,154.87,154.83,6.49822444]
[1748987701701,0.0409464,154.86,154.83,6.49822444]
[1748987701902,0.27949,154.87,154.83,0.04422444]
[1748987702197,603.4790329,154.93,154.84,11.6190329]
[1748987702389,34.38,154.96,154.86,11.6190329]
[1748987702589,34.38,154.96,154.88,11.6190329]
[1748987702788,6.4499,154.94,154.89,6.4514]
[1748987702995,0.04523522,154.93,154.9,0.04297754]
[1748987703199,0.04523522,154.93,154.91,11.6190329]
[1748987703395,11.82,154.95,154.91,11.6190329]
[1748987703593,11.82,154.95,154.93,11.6190329]
[1748987704196,18.2694,154.95,154.93,11.6190329]
[1748987704694,11.82,154.95,154.92,45.9990329]
[1748987704902,11.82,154.95,154.9,11.66201044]
[1748987705293,11.82,154.95,154.9,0.04297754]
[1748987705697,6.4509,154.92,154.9,0.04297754]
[1748987705900,0.04180981,154.93,154.9,0.04297754]
[1748987706298,6.4505,154.92,154.9,0.04297754]
[1748987706901,6.49200981,154.93,154.9,0.04297754]
[1748987707200,6.49200981,154.93,154.9,17.466811]
[1748987707398,0.04180981,154.93,154.9,17.466811]
[1748987707595,0.04180981,154.93,154.9,23.918111]
[1748987708002,0.04180981,154.93,154.9,17.466811]
[1748987708392,0.04180981,154.93,154.91,6.4509]
[1748987709197,0.04180981,154.93,154.92,17.42383346]
[1748987709405,0.04180981,154.93,154.92,23.87433346]
[1748987710409,0.04180981,154.93,154.92,6.4505]
[1748987711297,11.82,154.95,154.94,6.4497]
[1748987711702,6.4485,154.97,154.94,6.4497]
[1748987711900,34.36,155.02,154.95,6.4491]
[1748987712304,6.4479,154.99,154.97,0.0466208]
[1748987712900,6.49378512,155.0,154.97,17.47045426]
[1748987713699,0.04638512,155.0,154.98,51.78383346]
[1748987714303,6.4458,155.04,155.0,6.447]
[1748987714509,6.4458,155.04,155.0,23.87083346]
[1748987715306,6.49006883,155.04,155.0,23.91624039]
[1748987715710,6.446,155.03,155.0,23.91624039]
[1748987715905,0.04426883,155.04,155.0,34.38540693]
[1748987716109,0.04426883,155.04,155.0,0.04540693]
[1748987716414,6.4468,155.01,155.0,0.04540693]
[1748987726624,11.60521406,155.02,154.94,45.96521406]
[1748987726818,2.1544,155.0,154.94,45.96521406]
[1748987727222,6.4491,154.96,154.94,45.96521406]
[1748987730522,6.4491,154.96,154.94,34.36]
[1748987730728,6.4491,154.96,154.94,45.96521406]
[1748987731626,0.04779277,154.97,154.94,45.96521406]
[1748987732328,0.04779277,154.97,154.94,34.36]
[1748987732719,6.4491,154.96,154.94,45.96521406]
[1748987733020,6.4491,154.96,154.95,11.60521406]
[1748987734027,6.4493,154.95,154.94,45.96521406]
[1748987734726,6.449,154.96,154.94,45.96521406]
[1748987736429,0.04779277,154.97,154.94,45.96521406]
[1748987736831,6.4491,154.96,154.94,45.96521406]
[1748987738331,6.4493,154.95,154.94,34.36]
[1748987738535,6.4493,154.95,154.94,45.96521406]